bitfinex-derivatives/quotes_BTCF0:USTF0_20241104
["timestamp","ask_amount","ask_price","bid_price","bid_amount"]
[1730702880102,0.1954641,69007.0,69006.0,0.3638]
[1730702880608,0.1954641,69007.0,68991.0,0.00217428]
[1730702880609,0.072505,69006.0,68991.0,0.00217428]
[1730702880803,0.072519,68992.0,68991.0,0.00217428]
[1730702880994,0.10201601,68992.0,68991.0,0.00217428]
[1730702882208,0.10301601,68992.0,68991.0,0.00517428]
[1730702882398,0.10234064,68992.0,68991.0,0.00517428]
[1730702882996,0.10334064,68992.0,68991.0,0.00517428]
[1730702883407,0.03082164,68992.0,68991.0,0.16915837]
[1730702884312,0.03082164,68992.0,68991.0,0.20135837]
[1730702884910,0.03082164,68992.0,68991.0,0.10989428]
[1730702886108,0.002,68992.0,68991.0,0.10989428]
[1730702887813,0.002,68992.0,68991.0,0.16778863]
[1730702888205,0.002,68992.0,68991.0,0.10989428]
[1730702891926,0.002,68992.0,68991.0,0.16771704]
[1730702892617,0.002,68992.0,68991.0,0.10989428]
[1730702893309,0.0331,69006.0,68991.0,0.57603428]
[1730702893507,0.072503,69007.0,69006.0,0.072503]
[1730702893715,0.0972,69008.0,69007.0,0.072503]
[1730702893917,0.0972,69008.0,69005.0,0.09146409]
[1730702893918,0.0725,69010.0,69008.0,0.072502]
[1730702894115,0.0725,69010.0,69009.0,0.072501]
[1730702894317,0.0725,69010.0,69009.0,0.16396509]
[1730702896416,0.008,69010.0,69009.0,0.16396509]
[1730702897921,0.008,69010.0,69009.0,0.59868509]
[1730702898122,0.0321,69024.0,69009.0,0.61764818]
[1730702898424,0.072479,69030.0,69025.0,0.072484]
[1730702898616,0.072479,69030.0,69026.0,0.072483]
[1730702898921,0.072479,69030.0,69026.0,0.16394709]
[1730702899422,0.072479,69030.0,69026.0,0.072483]
[1730702899719,0.0321,69032.0,69026.0,0.072483]
[1730702899720,0.07248,69029.0,69026.0,0.072483]
[1730702899926,0.09506898,69029.0,69026.0,0.072483]
[1730702900813,0.014,69027.0,69026.0,0.001]
[1730702901013,0.086482,69027.0,69026.0,0.001]
[1730702901422,0.11658075,69027.0,69026.0,0.001]
[1730702902011,0.11658075,69027.0,69026.0,0.002]
[1730702902813,0.13058075,69027.0,69026.0,0.002]
[1730702903022,0.11658075,69027.0,69026.0,0.002]
[1730702903821,0.11658075,69027.0,69026.0,0.001]
[1730702904125,0.13058075,69027.0,69026.0,0.002]
[1730702905518,0.100482,69027.0,69026.0,0.002]
[1730702915620,0.23976163,69027.0,69026.0,0.002]
[1730702916427,0.26957517,69027.0,69026.0,0.002]
[1730702917031,0.13029554,69027.0,69026.0,0.002]
[1730702917829,0.13054372,69027.0,69026.0,0.002]
[1730702921936,0.05806172,69027.0,69026.0,0.074483]
[1730702922131,0.05812989,69027.0,69026.0,0.074483]
[1730702923534,0.028,69027.0,69026.0,0.074483]
[1730702926335,0.028,69027.0,69026.0,0.435283]
[1730702928745,0.100482,69027.0,69026.0,0.435283]
[1730702931735,0.100482,69027.0,69026.0,0.002]
[1730702932135,0.163682,69027.0,69026.0,0.002]
[1730702932537,0.19353858,69027.0,69026.0,0.002]
[1730702932741,0.163682,69027.0,69026.0,0.002]
[1730702933037,0.598282,69027.0,69026.0,0.002]
[1730702933241,0.19349556,69027.0,69026.0,0.002]
[1730702934542,0.163682,69027.0,69026.0,0.002]
[1730702934947,0.19341932,69027.0,69026.0,0.002]
[1730702935143,0.163682,69027.0,69026.0,0.002]
[1730702937646,0.100482,69027.0,69026.0,0.002]
[1730702938549,0.22164183,69027.0,69026.0,0.002]
[1730702938845,0.13023487,69027.0,69026.0,0.002]
[1730702945857,0.16573872,69027.0,69026.0,0.002]
[1730702946450,0.100482,69027.0,69026.0,0.002]
[1730702953554,0.1300374,69027.0,69026.0,0.002]
[1730702956954,0.0575554,69027.0,69026.0,0.435283]
[1730702958060,0.0435554,69027.0,69026.0,0.434283]
[1730702958250,0.0575554,69027.0,69026.0,0.435283]
[1730702958861,0.0575554,69027.0,69026.0,0.434283]
[1730702960867,0.0575554,69027.0,69026.0,0.52568996]
[1730702961453,0.028,69027.0,69026.0,0.52568996]
[1730702962655,0.014,69027.0,69026.0,0.52468996]
[1730702962855,0.09507961,69032.0,69030.0,0.072479]
[1730702963056,0.0326,69040.0,69031.0,0.09140696]
[1730702963259,0.072473,69036.0,69034.0,0.072474]
[1730702963459,0.072473,69036.0,69033.0,0.3608]
[1730702963654,0.072473,69036.0,69035.0,0.072474]
[1730702964854,0.072473,69036.0,69035.0,0.16388096]
[1730702965264,0.0229889,69039.0,69038.0,0.07247]
[1730702965467,0.07464153,69041.0,69038.0,0.16387696]
[1730702966561,0.014,69039.0,69038.0,0.16487696]
[1730702966772,0.014,69039.0,69038.0,0.16587696]
[1730702968066,0.01617353,69041.0,69038.0,0.09240696]
[1730702968258,0.05304892,69041.0,69040.0,0.3608]
[1730702968458,0.03017353,69041.0,69040.0,0.3608]
[1730702968670,0.0466647,69041.0,69040.0,0.3608]
[1730702968966,0.0326647,69041.0,69040.0,0.433268]
[1730702969359,0.0326647,69041.0,69040.0,0.434268]
[1730702969360,0.06330398,69041.0,69040.0,0.434268]
[1730702970067,0.07330398,69041.0,69040.0,0.435268]
[1730702970965,0.07330398,69041.0,69040.0,0.52667496]
[1730702971167,0.0506647,69041.0,69040.0,0.435268]
[1730702971465,0.02017353,69041.0,69040.0,0.435268]
[1730702973171,0.04250626,69041.0,69040.0,0.435268]
[1730702973370,0.02017353,69041.0,69040.0,0.435268]
[1730702976981,0.02017353,69041.0,69040.0,0.96119496]
[1730702977677,0.018,69041.0,69040.0,0.96119496]
[1730702979178,0.018,69041.0,69040.0,0.52667496]
[1730702981766,0.018,69041.0,69040.0,0.96119496]
[1730702982476,0.018,69041.0,69040.0,0.52667496]
[1730702985977,0.018,69041.0,69040.0,0.96119496]
[1730702986185,0.018,69041.0,69040.0,0.52667496]
[1730702986574,0.018,69041.0,69040.0,0.435268]
[1730702987070,0.018,69041.0,69040.0,0.52667496]
[1730702991476,0.018,69041.0,69040.0,0.57006332]
[1730702991687,0.018,69041.0,69040.0,0.52667496]
[1730703000894,0.018,69041.0,69040.0,0.58444849]
[1730703001089,0.018,69041.0,69040.0,0.49304153]
[1730703001289,0.018,69041.0,69040.0,0.435268]
[1730703001487,0.018,69041.0,69040.0,0.52667496]
[1730703006298,0.018,69041.0,69040.0,0.58444849]
[1730703006796,0.018,69041.0,69040.0,0.52667496]
[1730703018517,0.018,69041.0,69040.0,0.53067496]
[1730703018518,0.001,69041.0,69040.0,0.53067496]
[1730703018709,0.001,69041.0,69040.0,0.53667496]
[1730703018710,0.002,69041.0,69040.0,0.53667496]
[1730703019217,0.0324,69051.0,69050.0,0.072458]
[1730703019512,0.0324,69051.0,69050.0,0.52466496]
[1730703019918,0.0324,69051.0,69050.0,0.61607192]
[1730703021113,0.032,69062.0,69055.0,0.072453]
[1730703021318,0.032,69062.0,69055.0,0.25526692]
[1730703021319,0.0309,69061.0,69055.0,0.25526692]
[1730703021621,0.0309,69061.0,69060.0,0.072447]
[1730703021817,0.0309,69061.0,69060.0,0.56802372]
[1730703022017,0.0309,69061.0,69060.0,0.52465396]
[1730703023029,0.0302,69071.0,69070.0,0.072437]
[1730703023220,0.0302,69071.0,69070.0,0.52464396]
[1730703024427,0.0302,69071.0,69070.0,0.3608]
[1730703024628,0.91672696,69071.0,69060.0,0.3628]
[1730703024825,0.09140696,69064.0,69060.0,0.3618]
[1730703025021,0.072438,69069.0,69060.0,0.3618]
[1730703025022,0.0331,69063.0,69061.0,0.09140696]
[1730703025226,0.0331,69063.0,69062.0,0.09140696]
[1730703027431,0.0341,69063.0,69062.0,0.10140696]
[1730703027815,0.001,69063.0,69062.0,0.10140696]
[1730703028224,0.002,69063.0,69062.0,0.11140696]
[1730703030843,0.002,69063.0,69062.0,0.20281392]
[1730703031340,0.002,69063.0,69062.0,0.11140696]
[1730703031646,0.002,69063.0,69062.0,0.13451958]
[1730703032641,0.002,69063.0,69062.0,0.11140696]
[1730703033840,0.002,69063.0,69062.0,0.20281392]
[1730703034142,0.00217227,69076.0,69075.0,0.072432]
[1730703034332,0.00217227,69076.0,69075.0,0.52463896]
[1730703035349,0.00217227,69076.0,69075.0,0.52563896]
[1730703035549,0.01217227,69076.0,69075.0,0.52563896]
[1730703036243,0.02317227,69076.0,69075.0,0.52663896]
[1730703036445,0.02317227,69076.0,69075.0,0.61804592]
[1730703036834,0.02317227,69076.0,69075.0,0.52663896]
[1730703040545,0.02317227,69076.0,69075.0,0.54929186]
[1730703042656,0.02317227,69076.0,69075.0,0.64069882]
[1730703045951,0.0301,69093.0,69075.0,1.07501882]
[1730703046155,0.00217141,69090.0,69088.0,0.072418]
[1730703046949,0.00217141,69090.0,69089.0,0.09140696]
[1730703047851,0.01017141,69090.0,69089.0,0.09140696]
[1730703048654,0.01017141,69090.0,69089.0,0.09240696]
[1730703049055,0.01617141,69090.0,69089.0,0.09240696]
[1730703049853,0.01017141,69090.0,69089.0,0.09340696]
[1730703051254,0.08258741,69090.0,69089.0,0.16582396]
[1730703054960,0.01017141,69090.0,69089.0,0.16582396]
[1730703056358,0.01017141,69090.0,69089.0,0.16482396]
[1730703056559,0.01617141,69090.0,69089.0,0.16582396]
[1730703057662,0.01517141,69090.0,69089.0,0.16582396]
[1730703060553,0.04756973,69090.0,69089.0,0.16582396]
[1730703066668,0.01517141,69090.0,69089.0,0.16582396]
[1730703067367,0.013,69090.0,69089.0,0.16582396]
[1730703067969,0.013,69090.0,69089.0,0.18837611]
[1730703070771,0.013,69090.0,69089.0,0.27978307]
[1730703071762,0.007,69090.0,69089.0,0.27978307]
[1730703072071,0.007,69090.0,69089.0,0.27878307]
[1730703072072,0.006,69090.0,69089.0,0.27878307]
[1730703072366,0.013,69090.0,69089.0,0.27978307]
[1730703073058,0.013,69090.0,69089.0,0.32289698]
[1730703073257,0.013,69090.0,69089.0,0.27978307]
[1730703077968,0.013,69090.0,69089.0,0.37834307]
[1730703078480,0.007,69090.0,69089.0,0.37734307]
[1730703078670,0.012,69090.0,69089.0,0.37834307]
[1730703079471,0.1,69100.0,69089.0,0.37834307]
[1730703079682,0.1,69100.0,69099.0,0.16381296]
[1730703080964,0.105,69100.0,69099.0,0.16481296]
[1730703081669,0.13775325,69100.0,69099.0,0.16481296]
[1730703082075,0.13775325,69100.0,69099.0,0.16581296]
[1730703088981,0.13775325,69100.0,69099.0,0.52661296]
[1730703089687,0.105,69100.0,69099.0,0.52661296]
[1730703090577,0.1,69100.0,69099.0,0.52561296]
[1730703090779,0.1,69100.0,69099.0,0.52661296]
[1730703093787,0.1,69100.0,69099.0,0.435206]
[1730703094285,0.1,69100.0,69099.0,0.434206]
[1730703094485,0.1,69100.0,69099.0,0.435206]
[1730703095079,0.1,69100.0,69099.0,0.434206]
[1730703095880,0.1,69100.0,69099.0,0.433206]
[1730703097285,0.1,69100.0,69099.0,0.440206]
[1730703098393,0.1,69100.0,69099.0,0.445206]
[1730703106287,0.062,69116.0,69099.0,0.445206]
[1730703106493,0.062,69116.0,69115.0,0.16379696]
[1730703106693,0.062,69116.0,69111.0,0.09140696]
[1730703106889,0.062,69116.0,69115.0,0.09140696]
[1730703108294,0.062,69116.0,69115.0,0.09240696]
[1730703108492,0.062,69116.0,69115.0,0.09340696]
[1730703108995,0.3608,69117.0,69115.0,0.09340696]
[1730703109190,0.0309,69121.0,69115.0,0.09340696]
[1730703109396,0.0309,69121.0,69120.0,0.16379096]
[1730703109587,0.03361876,69121.0,69120.0,0.52459096]
[1730703109787,0.065,69124.0,69122.0,0.072382]
[1730703109986,0.03379284,69123.0,69122.0,0.072382]
[1730703110390,0.065,69124.0,69122.0,0.072382]
[1730703110597,0.065,69124.0,69123.0,0.16378796]
[1730703112194,0.09898531,69124.0,69123.0,0.16478796]
[1730703112905,0.09897595,69124.0,69123.0,0.16478796]
[1730703113304,0.09897595,69124.0,69123.0,0.16578796]
[1730703113896,0.09897595,69124.0,69123.0,0.20195537]
[1730703117707,0.17135595,69124.0,69123.0,0.03816741]
[1730703118008,0.2550454,69124.0,69123.0,0.03816741]
[1730703118501,0.2550454,69124.0,69123.0,0.29336233]
[1730703118502,0.03397595,69124.0,69123.0,0.29336233]
[1730703118705,0.16671959,69129.0,69123.0,0.29336233]
[1730703118706,0.07330586,69126.0,69123.0,0.29336233]
[1730703118900,0.02218049,69129.0,69128.0,0.072376]
[1730703119094,0.0979,69132.0,69130.0,0.072374]
[1730703119303,0.03401475,69131.0,69130.0,0.072374]
[1730703119616,0.12072444,69132.0,69130.0,0.072374]
[1730703119812,0.12072444,69132.0,69128.0,0.09140696]
[1730703120110,0.12072444,69132.0,69131.0,0.072373]
[1730703120295,0.12072444,69132.0,69131.0,0.16377996]
[1730703120699,0.15483363,69132.0,69131.0,0.16377996]
[1730703121213,0.15479897,69132.0,69131.0,0.16377996]
[1730703121394,0.09957453,69132.0,69131.0,0.16377996]
[1730703121594,0.02310331,69139.0,69132.0,0.072372]
[1730703121795,0.0958,69142.0,69141.0,0.072363]
[1730703122005,0.13015156,69142.0,69141.0,0.16376996]
[1730703122228,0.13015156,69142.0,69141.0,0.09140696]
[1730703122409,0.13015156,69142.0,69131.0,0.3618]
[1730703122410,0.52968,69142.0,69136.0,0.072367]
[1730703122709,0.072366,69138.0,69136.0,0.072367]
[1730703123007,0.09140696,69140.0,69135.0,0.09140696]
[1730703123210,0.09140696,69140.0,69139.0,0.072365]
[1730703123405,0.168162,69142.0,69141.0,0.072363]
[1730703123599,0.168162,69142.0,69141.0,0.16376996]
[1730703123800,0.0958,69142.0,69141.0,0.16376996]
[1730703123999,0.0629,69142.0,69141.0,0.16376996]
[1730703125007,0.0629,69142.0,69141.0,0.16476996]
[1730703126101,0.0629,69142.0,69141.0,0.16576996]
[1730703126506,0.0629,69142.0,69141.0,0.16476996]
[1730703126709,0.0629,69142.0,69141.0,0.16576996]
[1730703126905,0.13478,69149.0,69146.0,0.072357]
[1730703127100,0.08743486,69149.0,69146.0,0.072357]
[1730703127514,0.15978886,69149.0,69146.0,0.072357]
[1730703128407,0.15978886,69149.0,69146.0,0.073357]
[1730703128904,0.15978886,69149.0,69146.0,0.001]
[1730703129107,0.08743486,69149.0,69146.0,0.002]
[1730703129305,0.0327,69149.0,69148.0,0.072355]
[1730703129505,0.3608,69150.0,69149.0,0.072354]
[1730703130013,0.07451691,69156.0,69150.0,0.072353]
[1730703130315,0.10540991,69156.0,69155.0,0.072348]
[1730703130501,0.00216991,69156.0,69155.0,0.072348]
[1730703132009,0.0325,69168.0,69162.0,0.07234]
[1730703132215,0.36176,69169.0,69167.0,0.13905222]
[1730703132409,0.3608,69169.0,69167.0,0.13905222]
[1730703133508,0.3608,69169.0,69167.0,0.14005222]
[1730703133905,0.3608,69169.0,69167.0,0.14105222]
[1730703134413,0.3608,69169.0,69168.0,0.072334]
[1730703135408,0.104326,69176.0,69167.0,0.14005222]
[1730703135619,0.03608315,69175.0,69171.0,0.13905222]
[1730703135807,0.03608315,69174.0,69172.0,0.072329]
[1730703136009,0.02230821,69176.0,69171.0,0.50061222]
[1730703136202,0.105222,69180.0,69174.0,0.072327]
[1730703136404,0.03631607,69179.0,69176.0,0.13905222]
[1730703136608,0.10864007,69178.0,69176.0,0.13905222]
[1730703136921,0.03631607,69177.0,69171.0,0.57218222]
[1730703137111,0.072324,69178.0,69172.0,0.07233]
[1730703137305,0.072324,69178.0,69173.0,0.072329]
[1730703138328,0.072324,69178.0,69174.0,0.001]
[1730703138619,0.072324,69178.0,69177.0,0.13905222]
[1730703138818,0.05578388,69180.0,69177.0,0.13905222]
[1730703139718,0.12810688,69180.0,69177.0,0.13905222]
[1730703140023,0.12810688,69180.0,69177.0,0.14005222]
[1730703140919,0.12810688,69180.0,69177.0,0.14105222]
[1730703141219,0.02288388,69180.0,69179.0,0.072323]
[1730703141515,0.00216875,69183.0,69182.0,0.07232]
[1730703141718,0.00216875,69183.0,69182.0,0.21137222]
[1730703143010,0.00216875,69183.0,69182.0,0.21237222]
[1730703144604,0.00216875,69183.0,69182.0,0.21337222]
[1730703145319,0.00216875,69183.0,69182.0,0.002]
[1730703145615,0.07448775,69183.0,69182.0,0.002]
[1730703145808,0.50812775,69183.0,69182.0,0.002]
[1730703147013,0.61132775,69183.0,69182.0,0.002]
[1730703148917,0.61132775,69183.0,69182.0,0.001]
[1730703149127,0.61132775,69183.0,69182.0,0.002]
[1730703150212,0.17768775,69183.0,69182.0,0.002]
[1730703151912,0.17768775,69183.0,69182.0,0.001]
[1730703152117,0.00216875,69183.0,69182.0,0.07332]
[1730703152318,0.00216875,69183.0,69182.0,0.07432]
[1730703152711,0.00216875,69183.0,69182.0,0.07332]
[1730703153014,0.00216875,69183.0,69182.0,0.07432]
[1730703156523,0.3608,69186.0,69182.0,0.07432]
[1730703156732,0.072314,69188.0,69184.0,0.13905222]
[1730703156917,0.03695266,69187.0,69184.0,0.13905222]
[1730703157222,0.072314,69188.0,69184.0,0.13905222]
[1730703157223,0.03702989,69186.0,69184.0,0.13905222]
[1730703157425,0.072309,69193.0,69185.0,0.072316]
[1730703157628,0.0800904,69192.0,69185.0,0.072316]
[1730703157827,0.04302947,69191.0,69185.0,0.072316]
[1730703158127,0.0800904,69191.0,69185.0,0.072316]
[1730703158327,0.03706093,69190.0,69189.0,0.13905222]
[1730703159125,0.08016762,69190.0,69189.0,0.13905222]
[1730703160129,0.08016762,69190.0,69189.0,0.14005222]
[1730703160716,0.03706093,69190.0,69189.0,0.14005222]
[1730703161015,0.07231,69191.0,69189.0,0.14105222]
[1730703161217,0.03706093,69190.0,69189.0,0.14105222]
[1730703161415,0.072308,69194.0,69189.0,0.14105222]
[1730703161618,0.03706093,69193.0,69189.0,0.14105222]
[1730703161822,0.03719425,69192.0,69189.0,0.14105222]
[1730703162028,0.072311,69190.0,69189.0,0.001]
[1730703162231,0.10950525,69190.0,69189.0,0.002]
[1730703162631,0.10950525,69190.0,69189.0,0.001]
[1730703162835,0.10950525,69190.0,69189.0,0.002]
[1730703163837,0.10950525,69190.0,69189.0,0.001]
[1730703164131,0.10950525,69190.0,69189.0,0.002]
[1730703164325,0.072311,69190.0,69189.0,0.002]
[1730703167426,0.0952774,69190.0,69189.0,0.002]
[1730703168328,0.072311,69190.0,69189.0,0.002]
[1730703168527,0.072311,69190.0,69189.0,0.074312]
[1730703170022,0.02269911,69194.0,69189.0,0.002]
[1730703170220,0.072307,69194.0,69192.0,0.072309]
[1730703170623,0.072307,69194.0,69193.0,0.072308]
[1730703171427,0.10963049,69194.0,69193.0,0.072308]
[1730703172621,0.03732349,69194.0,69193.0,0.072308]
[1730703172823,0.03732349,69194.0,69193.0,0.138808]
[1730703173233,0.03732349,69194.0,69193.0,0.139808]
[1730703175736,0.03732349,69194.0,69193.0,0.500608]
[1730703176843,0.1,69200.0,69193.0,0.4283]
[1730703177131,0.1,69200.0,69199.0,0.49985222]
[1730703177334,0.13790996,69200.0,69199.0,0.57215422]
[1730703178324,0.13790996,69200.0,69199.0,1.00567422]
[1730703178635,0.1,69200.0,69199.0,1.00567422]
[1730703179226,0.1,69200.0,69199.0,1.00667422]
[1730703179634,0.1,69200.0,69199.0,1.00767422]
[1730703180221,0.1,69200.0,69199.0,1.00667422]
[1730703180424,0.3608,69214.0,69199.0,1.00767422]
[1730703180637,0.03805767,69213.0,69212.0,0.072288]
[1730703181027,0.03805767,69213.0,69212.0,0.21134022]
[1730703182045,0.03805767,69213.0,69212.0,0.21234022]
[1730703182339,0.11034467,69213.0,69212.0,0.001]
[1730703182533,0.14354467,69213.0,69212.0,0.001]
[1730703183335,0.14370982,69213.0,69212.0,0.001]
[1730703183532,0.105487,69213.0,69212.0,0.002]
[1730703184040,0.105487,69213.0,69205.0,0.433895]
[1730703184041,0.43223537,69213.0,69205.0,0.3616]
[1730703184233,0.03823537,69212.0,69205.0,0.3608]
[1730703184437,0.072293,69208.0,69205.0,0.3608]
[1730703185642,0.072293,69208.0,69206.0,0.072295]
[1730703186634,0.072293,69208.0,69205.0,0.3618]
[1730703186635,0.072295,69206.0,69205.0,0.002]
[1730703186835,0.11040181,69206.0,69205.0,0.002]
[1730703187246,0.11040181,69206.0,69205.0,0.001]
[1730703187839,0.11040181,69206.0,69202.0,0.072298]
[1730703188034,0.072295,69206.0,69202.0,0.072298]
[1730703188439,0.072297,69205.0,69202.0,0.072298]
[1730703189132,0.072297,69205.0,69202.0,0.073298]
[1730703189849,0.073297,69205.0,69202.0,0.074298]
[1730703190046,0.073297,69205.0,69203.0,0.072297]
[1730703190541,0.072298,69203.0,69202.0,0.002]
[1730703190742,0.11029417,69203.0,69202.0,0.002]
[1730703191232,0.11029417,69203.0,69202.0,0.001]
[1730703191429,0.11029417,69203.0,69202.0,0.002]
[1730703191634,0.11029417,69203.0,69202.0,0.001]
[1730703192134,0.072302,69199.0,69198.0,0.00216749]
[1730703192442,0.43452734,69199.0,69198.0,0.00216749]
[1730703193330,0.43552734,69199.0,69198.0,0.00316749]
[1730703193535,0.07472734,69199.0,69198.0,0.00316749]
[1730703193752,0.43552734,69199.0,69198.0,0.00316749]
[1730703194443,0.39797588,69199.0,69198.0,0.00316749]
[1730703194944,0.39797588,69199.0,69198.0,0.00416749]
[1730703195846,0.83149588,69199.0,69198.0,0.00416749]
[1730703196042,0.85430232,69199.0,69198.0,0.00416749]
[1730703196551,0.85430232,69199.0,69198.0,0.002]
[1730703197441,0.85430232,69199.0,69184.0,0.0307]
[1730703197642,0.3608,69189.0,69184.0,0.0307]
[1730703197951,0.072316,69186.0,69183.0,0.433118]
[1730703198340,0.072318,69184.0,69183.0,0.433118]
[1730703198540,0.072318,69184.0,69183.0,0.3608]
[1730703198949,0.072314,69188.0,69185.0,0.072315]
[1730703199246,0.3608,69189.0,69186.0,0.072315]
[1730703199247,0.072315,69187.0,69186.0,0.072315]
[1730703201346,0.002,69188.0,69187.0,0.072314]
[1730703201644,0.002,69188.0,69187.0,0.21136622]
[1730703201846,0.072304,69197.0,69187.0,0.13905222]
[1730703202035,0.072304,69197.0,69194.0,0.072307]
[1730703203150,0.002,69197.0,69194.0,0.001]
[1730703203356,0.072306,69196.0,69194.0,0.001]
[1730703204251,0.072306,69196.0,69194.0,0.002]
[1730703204947,0.003,69197.0,69195.0,0.072306]
[1730703205147,0.001,69196.0,69195.0,0.072306]
[1730703205337,0.002,69196.0,69195.0,0.072306]
[1730703206045,0.002,69196.0,69195.0,0.073306]
[1730703206046,0.001,69196.0,69195.0,0.073306]
[1730703206750,0.001,69197.0,69195.0,0.073306]
[1730703206945,0.001,69196.0,69195.0,0.074306]
[1730703207656,0.3939,69213.0,69202.0,0.072299]
[1730703207953,0.10772,69211.0,69203.0,0.072297]
[1730703208152,0.10772,69211.0,69198.0,0.13905222]
[1730703208351,0.072293,69208.0,69203.0,0.072297]
[1730703208852,0.073293,69208.0,69203.0,0.072297]
[1730703209049,0.073293,69208.0,69203.0,0.073297]
[1730703209759,0.074293,69208.0,69203.0,0.073297]
[1730703210448,0.002,69208.0,69206.0,0.072294]
[1730703210644,0.001,69208.0,69206.0,0.072294]
[1730703210842,0.002,69208.0,69206.0,0.072294]
[1730703211450,0.001,69208.0,69207.0,0.072293]
[1730703211846,0.072288,69212.0,69207.0,0.072293]
[1730703212153,0.072288,69212.0,69206.0,0.002]
[1730703212154,0.36176,69213.0,69209.0,0.072291]
[1730703212350,0.3608,69213.0,69209.0,0.072291]
[1730703212756,0.3608,69213.0,69210.0,0.072289]
[1730703213252,0.3608,69213.0,69211.0,0.072288]
[1730703214261,0.3618,69213.0,69211.0,0.072288]
[1730703214857,0.3608,69213.0,69211.0,0.072288]
[1730703215059,0.3618,69213.0,69211.0,0.073288]
[1730703215350,0.3618,69213.0,69211.0,0.074288]
[1730703218545,0.3618,69213.0,69211.0,0.002]
[1730703218761,0.072288,69212.0,69211.0,0.002]
[1730703220155,0.072288,69212.0,69211.0,0.001]
[1730703220354,0.073288,69212.0,69211.0,0.002]
[1730703221355,0.136288,69212.0,69211.0,0.002]
[1730703221659,0.166588,69212.0,69211.0,0.002]
[1730703222259,0.600028,69212.0,69211.0,0.002]
[1730703222752,0.99870062,69212.0,69197.0,0.072304]
[1730703223071,0.3608,69203.0,69197.0,0.072304]
[1730703223761,0.072302,69199.0,69197.0,0.072304]
[1730703223961,0.072302,69199.0,69197.0,0.073304]
[1730703224666,0.072302,69199.0,69197.0,0.074304]
[1730703225258,0.001,69199.0,69197.0,0.002]
[1730703225467,0.072303,69198.0,69197.0,0.002]
[1730703227164,0.072303,69198.0,69197.0,0.001]
[1730703227364,0.074303,69198.0,69197.0,0.002]
[1730703227763,0.074303,69198.0,69197.0,0.03712873]
[1730703227970,0.075303,69198.0,69197.0,0.03812873]
[1730703231275,0.075303,69198.0,69197.0,0.11043273]
[1730703231479,0.003,69198.0,69197.0,0.11043273]
[1730703232574,0.003,69198.0,69197.0,0.14293273]
[1730703234282,0.003,69198.0,69197.0,0.11043273]
[1730703237088,0.075303,69198.0,69197.0,0.03812873]
[1730703237282,0.107003,69198.0,69197.0,0.03812873]
[1730703240287,0.210203,69198.0,69197.0,0.03812873]
[1730703240881,0.24781005,69198.0,69197.0,0.03812873]
[1730703241391,0.29151208,69198.0,69197.0,0.03812873]
[1730703241691,0.68137005,69198.0,69197.0,0.03812873]
[1730703242992,0.65251146,69198.0,69196.0,0.0021677]
[1730703243182,0.15335546,69197.0,69196.0,0.0021677]
[1730703243581,0.58691546,69197.0,69196.0,0.0021677]
[1730703243887,0.505864,69197.0,69196.0,0.0021677]
[1730703244083,0.58660208,69197.0,69196.0,0.0021677]
[1730703244492,0.58660208,69197.0,69196.0,0.0031677]
[1730703244686,0.58760208,69197.0,69196.0,0.0041677]
[1730703245089,0.51529808,69197.0,69175.0,0.39306816]
[1730703245294,0.072322,69180.0,69175.0,0.39306816]
[1730703245500,0.072322,69180.0,69177.0,0.072324]
[1730703246682,0.072322,69180.0,69175.0,0.39382816]
[1730703246683,0.21136922,69185.0,69175.0,0.39382816]
[1730703246880,0.072319,69183.0,69181.0,0.072321]
[1730703248295,0.072319,69183.0,69181.0,0.080321]
[1730703248796,0.38354535,69187.0,69181.0,0.080321]
[1730703248982,0.07232,69182.0,69181.0,0.086321]
[1730703250389,0.07232,69182.0,69181.0,0.082321]
[1730703250592,0.13905222,69185.0,69181.0,0.01]
[1730703250896,0.072318,69184.0,69183.0,0.072319]
[1730703253000,0.003,69184.0,69183.0,0.072319]
[1730703253401,0.005,69184.0,69183.0,0.072319]
[1730703256993,0.005,69184.0,69183.0,0.21137122]
[1730703258594,0.3608,69203.0,69183.0,0.64501122]
[1730703258595,0.38313111,69199.0,69183.0,0.64501122]
[1730703258788,0.03775966,69198.0,69190.0,0.3608]
[1730703258987,0.03775966,69197.0,69193.0,0.072308]
[1730703259192,0.03775966,69196.0,69193.0,0.072308]
[1730703259500,0.072304,69198.0,69193.0,0.072308]
[1730703259802,0.03767245,69197.0,69193.0,0.072308]
[1730703259999,0.04067245,69197.0,69193.0,0.001]
[1730703260210,0.13905222,69194.0,69193.0,0.001]
[1730703260499,0.13905222,69194.0,69191.0,0.07231]
[1730703260703,0.13905222,69194.0,69193.0,0.001]
[1730703261102,0.13905222,69194.0,69191.0,0.07231]
[1730703261303,0.13905222,69194.0,69193.0,0.001]
[1730703261706,0.13905222,69194.0,69193.0,0.002]
[1730703262407,0.13905222,69194.0,69193.0,0.001]
[1730703262612,0.13905222,69194.0,69193.0,0.002]
[1730703263910,0.21135922,69194.0,69193.0,0.002]
[1730703269302,0.16350348,69194.0,69193.0,0.002]
[1730703274513,0.1865345,69197.0,69196.0,0.072305]
[1730703274912,0.1142305,69197.0,69196.0,0.072305]
[1730703275421,0.02303402,69197.0,69196.0,0.072305]
[1730703275609,0.3608,69199.0,69193.0,0.002]
[1730703275811,0.3608,69199.0,69197.0,0.072304]
[1730703276515,0.072303,69198.0,69197.0,0.072304]
[1730703277009,0.11006838,69198.0,69197.0,0.072304]
[1730703277210,0.11006838,69198.0,69197.0,0.073304]
[1730703277911,0.11206838,69198.0,69197.0,0.072304]
[1730703280814,0.11006838,69198.0,69197.0,0.072304]
[1730703281023,0.072307,69194.0,69193.0,0.072308]
[1730703281213,0.11007238,69194.0,69193.0,0.072308]
[1730703282919,0.11007238,69194.0,69193.0,0.086308]